lending/lending_fUSD_20251125
["ID","MTS","AMOUNT","RATE_DAILY","PERIOD"]
[394870110,1764042631833,-53476.0889483,0.00015784,2]
[394870111,1764042631845,-3558.8706375,0.00015784,2]
[394870112,1764042631855,-14471.6294739,0.00015784,2]
[394870113,1764042631867,-50988.77981383,0.00015795,2]
[394870114,1764042631880,-4293.92021038,0.00015795,2]
[394870115,1764042631898,-2601.9411278,0.00015795,2]
[394870116,1764042631920,-500.0,0.00015795,2]
[394870246,1764042637280,-8568.3,0.00015795,2]
[394870247,1764042637293,-1300.0,0.00015795,2]
[394870248,1764042637332,-5079.9999997,0.00015795,2]
[394870249,1764042637392,-64074.90527819,0.00015795,2]
[394870250,1764042637403,-2914.5177235,0.00015799,2]
[394870251,1764042637412,-1057.97019412,0.00015873,2]
[394870252,1764042637422,-5930.05269473,0.000159,2]
[394870253,1764042637431,-167.64300838,0.000159,2]
[394870254,1764042637442,-326.17179131,0.000159,2]
[394870255,1764042637452,-326.17179129,0.000159,2]
[394870256,1764042637461,-326.17179129,0.000159,2]
[394870257,1764042637471,-811.34346498,0.00015944,2]
[394870258,1764042637481,-500.0,0.00015973,2]
[394870259,1764042637490,-500.0,0.00015973,2]
[394870260,1764042637500,-500.0,0.00015973,2]
[394870261,1764042637510,-500.0,0.00015973,2]
[394870262,1764042637520,-501.62624359,0.00015973,2]
[394870263,1764042637530,-595.27530165,0.00015973,2]
[394870264,1764042637540,-500.0,0.00015973,2]
[394870265,1764042637549,-500.0,0.00015973,2]
[394870267,1764042637558,-500.0,0.00015973,2]
[394870268,1764042637568,-510.85305174,0.00015973,2]
[394870269,1764042637578,-500.0,0.00015973,2]
[394870270,1764042637588,-567.21962,0.00015973,2]
[394870271,1764042637598,-500.0,0.00015973,2]
[394870272,1764042637608,-503.48932577,0.00015973,2]
[394870273,1764042637617,-500.0,0.00015973,2]
[394870274,1764042637627,-500.0,0.00015973,2]
[394870275,1764042637636,-500.0,0.00015973,2]
[394870276,1764042637646,-500.0,0.00015973,2]
[394870277,1764042637655,-502.27387194,0.00015973,2]
[394870278,1764042637664,-500.0,0.00015973,2]
[394870279,1764042637674,-4209.25261,0.0001599,2]
[394870280,1764042637683,-476.19131263,0.0001599,2]
[394870281,1764042637693,-151.0,0.0001599,2]
[394870282,1764042637702,-157.82262478,0.0001599,2]
[394870283,1764042637712,-500.0,0.00015999,2]
[394870284,1764042637723,-321.01976712,0.00015999,2]
[394870285,1764042637733,-195.74226656,0.00015999,2]
[394870286,1764042637742,-235.99926896,0.00015999,2]
[394870287,1764042637752,-5421.55634498,0.00016,4]
[394870288,1764042637790,-7396.46225131,0.00016,4]
[394870289,1764042637805,-7009.82163383,0.00016,4]
[394870290,1764042637817,-5744.34520411,0.00016,4]
[394870291,1764042637829,-23883.72121943,0.00016,4]
[394870292,1764042637840,-423.81024343,0.00016,4]
[394870293,1764042637854,-628.73244732,0.00016,4]
[394870294,1764042637866,-8338.17273341,0.00016,4]
[394870295,1764042637878,-1987.89123967,0.00016,4]
[394870296,1764042637890,-40000.0,0.00016,4]
[394870297,1764042637922,-3048.48917838,0.00016,4]
[394870298,1764042639605,-238.09565631,0.00015999,2]
[394870299,1764042639616,-21026.75188112,0.00016,4]
[394870300,1764042639628,-4348.12435315,0.00016,4]
[394870301,1764042639654,-568875.22253467,0.00016,4]
[394870302,1764042639669,-99976.57857973,0.00016,4]
[394870303,1764042639680,-21716.2700978,0.00016,4]
[394870304,1764042639695,-3603.41307102,0.00016,4]
[394870305,1764042639706,-436.86530919,0.00016,4]
[394870306,1764042639720,-2837.91065428,0.00016,4]
[394870307,1764042639735,-320.39585819,0.00016,4]
[394870314,1764042642998,-100270.87581306,0.00016,4]
[394870315,1764042643052,-773.11986588,0.00016,4]
[394870316,1764042643787,-296.943265,0.00016,4]
[394870317,1764042643798,-4397.27792123,0.00016,4]
[394870318,1764042643841,-1018.47765908,0.00016,4]
[394870323,1764042645622,-279.19,0.00016,4]
[394870324,1764042645676,-5405.47653459,0.00016,4]
[394870325,1764042645688,-5000.0,0.00016,4]
[394870381,1764043345373,500.0,0.00014919,2]
[394870555,1764043648025,500.0,0.00014919,2]
[394870572,1764043732492,1000.0,0.00014844,2]
[394870573,1764043742454,3562.5,0.00014873,2]
[394870591,1764043823236,1500.0,0.00014802,2]
[394870595,1764043831569,-166.66,0.00014919,2]
[394870596,1764043831580,-195.85797524,0.00014919,2]
[394870597,1764043831589,-200.0,0.00014941,2]
[394870598,1764043831599,-482.55,0.00014951,2]
[394870599,1764043831609,-211.29,0.00015147,2]
[394870600,1764043831618,-166.66,0.00015233,2]
[394870601,1764043831627,-166.66,0.00015457,2]
[394870602,1764043831636,-526.37125035,0.00015467,2]
[394870603,1764043831645,-300.0,0.00015516,2]
[394870604,1764043831654,-300.0,0.00015516,2]
[394870605,1764043831665,-1200.0,0.00015516,2]
[394870606,1764043831674,-6271.83867429,0.00015517,2]
[394870607,1764043831684,-89712.11302357,0.00015517,2]
[394870608,1764043831695,-47566.858667,0.00015517,2]
[394870609,1764043831708,-38291.21418404,0.00015517,2]
[394870610,1764043831719,-3648.88562539,0.00015517,2]
[394870611,1764043831729,-166.66,0.00015547,2]
[394870612,1764043831742,-500.0,0.00015573,2]
[394870613,1764043831752,-500.0,0.00015573,2]
[394870614,1764043831762,-300.0,0.00015581,2]
[394870615,1764043831771,-1506.5,0.00015582,2]
[394870617,1764043831783,-1000.0,0.00015595,2]
[394870619,1764043831792,-300.0,0.00015616,2]
[394870621,1764043831802,-1137.35,0.00015617,2]
[394870623,1764043831812,-1852.42,0.00015617,2]
[394870625,1764043831822,-9999.99,0.00015617,2]
[394870627,1764043831833,-1456.74,0.00015617,2]
[394870629,1764043831843,-2952.43,0.00015617,2]
[394870630,1764043831852,-5297.31,0.00015617,2]
[394870631,1764043831861,-23039.27047963,0.00015617,2]
[394870634,1764043831991,-931.74371364,0.00015617,2]
[394870675,1764043839782,-500.0,0.00015616,2]
[394870676,1764043839791,-500.0,0.00015616,2]
[394870677,1764043839801,-500.0,0.00015616,2]
[394870678,1764043839810,-500.0,0.00015616,2]
[394870679,1764043839821,-500.0,0.00015616,2]
[394870680,1764043839831,-500.0,0.00015616,2]
[394870681,1764043839839,-575.09815796,0.00015616,2]
[394870682,1764043839849,-14895.88991019,0.00015617,2]
[394870685,1764043843340,-23056.10653504,0.00015617,2]
[394870689,1764043845646,-3125.23842,0.00015617,2]
[394870690,1764043845657,-3449.8,0.00015617,2]
[394870691,1764043845700,-1820.82,0.00015617,2]
[394870692,1764043845863,-602.0,0.00015617,2]
[394870693,1764043845918,-1994.01599998,0.00015617,2]
[394870694,1764043845930,-265.60627094,0.00015617,2]
[394870702,1764044091808,661.94,0.00013699,2]
[394870703,1764044131504,-999.0,0.00015016,3]
[394870714,1764044286955,-1600.0,0.00014985,2]
[394870744,1764044411588,698.952,0.00022,30]
[394870752,1764044471925,-150.0,0.00014799,2]
[394870753,1764044503467,-166.181,0.00015109,2]
[394870754,1764044503499,-1263.177,0.00015109,2]
[394870759,1764044610785,-200.0,0.00014763,2]
[394870763,1764044827326,168.19,7.358e-05,2]
[394870806,1764045031771,-215.0,0.00015258,2]
[394870808,1764045031781,-168.0,0.00015258,2]
[394870810,1764045031790,-157.89,0.00015258,2]
[394870813,1764045031799,-195.0,0.00015269,2]
[394870815,1764045031809,-250.0,0.0001528,2]
[394870816,1764045031819,-168.0,0.00015316,2]
[394870817,1764045031828,-1200.0,0.00015359,2]
[394870818,1764045031837,-1187.46722492,0.0001536,2]
[394870819,1764045031848,-793.30310123,0.0001536,2]
[394870820,1764045031859,-4363.43068455,0.0001536,2]
[394870821,1764045031870,-600.54186784,0.0001536,2]
[394870822,1764045031882,-852.96246136,0.0001536,2]
[394870823,1764045031894,-606.77627313,0.0001536,2]
[394870824,1764045031903,-300.0,0.00015371,2]
[394870825,1764045031914,-7451.84302607,0.00015373,2]
[394870826,1764045031927,-806.96000115,0.00015373,2]
[394870827,1764045031947,-1248.09889333,0.00015373,2]
[394870828,1764045031957,-369.25106042,0.00015373,2]
[394870829,1764045031969,-488.41,0.00015373,2]
[394870830,1764045031996,-32.00514337,0.00015373,2]
[394870831,1764045032007,-151.0,0.00015408,2]
[394870832,1764045032016,-300.0,0.00015415,2]
[394870833,1764045032025,-289.41015911,0.00015416,2]
[394870834,1764045032037,-210.58984089,0.00015416,2]
[394870835,1764045032047,-301.77428897,0.00015416,2]
[394870836,1764045032057,-509.41747409,0.00015416,2]
[394870837,1764045032066,-500.0,0.00015416,2]
[394870838,1764045032076,-1042.57,0.00015416,2]
[394870839,1764045032085,-500.0,0.00015416,2]
[394870840,1764045032095,-500.0,0.00015416,2]
[394870841,1764045032107,-500.0,0.00015416,2]
[394870842,1764045032124,-500.0,0.00015416,2]
[394870843,1764045032133,-500.0,0.00015416,2]
[394870844,1764045032143,-500.0,0.00015416,2]
[394870845,1764045032153,-501.60895794,0.00015416,2]
[394870846,1764045032162,-500.0,0.00015416,2]
[394870848,1764045032171,-500.0,0.00015416,2]
[394870849,1764045032181,-500.0,0.00015416,2]
[394870850,1764045032191,-435.0098158,0.00015416,2]
[394870851,1764045032200,-500.0,0.00015416,2]
[394870852,1764045032210,-500.0,0.00015416,2]
[394870853,1764045032220,-500.0,0.00015416,2]
[394870854,1764045032230,-500.0,0.00015416,2]
[394870855,1764045032239,-500.0,0.00015416,2]
[394870856,1764045032249,-500.0,0.00015416,2]
[394870857,1764045032259,-500.0,0.00015416,2]
[394870858,1764045032269,-500.0,0.00015416,2]
[394870859,1764045032278,-500.0,0.00015416,2]
[394870860,1764045032287,-500.0,0.00015416,2]
[394870861,1764045032296,-500.0,0.00015416,2]
[394870862,1764045032305,-444.28438789,0.00015416,2]
[394870863,1764045032315,-532.91341021,0.00015416,2]
[394870864,1764045032324,-9999.99,0.00015416,2]
[394870865,1764045032333,-150.99,0.00015416,2]
[394870866,1764045032343,-150.0,0.00015417,2]
[394870867,1764045032352,-150.0,0.00015417,2]
[394870868,1764045032373,-150.0,0.00015417,2]
[394870869,1764045032388,-150.0,0.00015417,2]
[394870870,1764045032399,-201.62347752,0.00015417,2]
[394870871,1764045032410,-150.0,0.00015417,2]
[394870872,1764045032420,-151.96776466,0.00015417,2]
[394870873,1764045032430,-150.0,0.00015417,2]
[394870874,1764045032441,-500.0,0.00015417,2]
[394870875,1764045032458,-299.99,0.00015417,2]
[394870876,1764045032471,-999.99,0.00015417,2]
[394870877,1764045032480,-1988.64,0.00015417,2]
[394870878,1764045032489,-150.99,0.00015417,2]
[394870879,1764045032499,-13883.47,0.00015417,2]
[394870880,1764045032510,-9999.99,0.00015417,2]
[394870881,1764045032520,-12512.76539711,0.00015417,2]
[394870900,1764045037795,-323.53460289,0.00015417,2]
[394870901,1764045037805,-9999.99,0.00015417,2]
[394870902,1764045037815,-168.0,0.00015438,2]
[394870903,1764045037825,-3507.71051,0.0001546,2]
[394870904,1764045037835,-168.0,0.00015472,2]
[394870905,1764045037845,-1464.09267255,0.00015497,2]
[394870906,1764045037854,-3507.71051,0.000155,2]
[394870907,1764045037863,-168.0,0.00015515,2]
[394870908,1764045037873,-3265.2379075,0.00015542,2]
[394870909,1764045037883,-433.11285525,0.00015552,2]
[394870910,1764045037900,-2574.28788312,0.00015552,2]
[394870911,1764045037961,-59.59926163,0.00015552,2]
[394870912,1764045037971,-150.0,0.00015554,2]
[394870913,1764045037981,-77.73073837,0.00015554,2]
[394870920,1764045040049,-72.26926163,0.00015554,2]
[394870921,1764045040059,-219.59929712,0.00015554,2]
[394870922,1764045040070,-500.0,0.00015554,2]
[394870923,1764045040080,-177.1857357,0.00015567,2]
[394870924,1764045040089,-677.69827937,0.00015567,2]
[394870948,1764045043651,-9042.03774003,0.00015567,2]
[394870950,1764045043661,-3102.7602735,0.00015567,2]
[394870952,1764045043671,-168.0,0.00015568,2]
[394870954,1764045043686,-168.0,0.0001558,2]
[394870956,1764045043703,-500.0,0.00015614,2]
[394870958,1764045043712,-150.0,0.00015614,2]
[394870960,1764045043722,-153.30984057,0.00015614,2]
[394870962,1764045043731,-154.72993928,0.00015614,2]
[394870964,1764045043740,-150.0,0.00015614,2]
[394870966,1764045043750,-500.0,0.00015614,2]
[394870968,1764045043759,-500.0,0.00015614,2]
[394870970,1764045043769,-180.64385222,0.00015615,2]
[394870972,1764045043778,-3507.71052,0.0001562,2]
[394870974,1764045043788,-151.0,0.00015651,2]
[394870976,1764045043798,-151.0,0.00015651,2]
[394870978,1764045043807,-151.0,0.00015651,2]
[394870979,1764045043816,-151.0,0.00015651,2]
[394870981,1764045043826,-151.0,0.00015651,2]
[394870982,1764045043836,-151.0,0.00015651,2]
[394870983,1764045044046,-151.0,0.00015651,2]
[394870984,1764045044057,-151.0,0.00015651,2]
[394870985,1764045044067,-168.0,0.00015658,2]
[394870986,1764045044076,-168.0,0.00015659,2]
[394870987,1764045044086,-1042.57,0.0001569,2]
[394870988,1764045044095,-150.0,0.00015691,2]
[394870989,1764045044108,-150.0,0.00015691,2]
[394870990,1764045044118,-500.0,0.00015691,2]
[394870991,1764045044128,-168.0,0.000157,2]
[394870992,1764045044137,-168.0,0.00015704,2]
[394870993,1764045044146,-453.0,0.00015714,2]
[394870994,1764045044156,-168.0,0.00015718,2]
[394870995,1764045044165,-168.0,0.0001575,2]
[394870996,1764045044175,-3507.71051,0.0001575,2]
[394870997,1764045044185,-500.0,0.00015751,2]
[394870998,1764045044195,-500.0,0.00015751,2]
[394870999,1764045044204,-168.0,0.00015776,2]
[394871000,1764045044214,-150.0,0.00015828,2]
[394871001,1764045044223,-150.0,0.00015828,2]
[394871002,1764045044233,-500.0,0.00015828,2]
[394871003,1764045044242,-168.0,0.00015842,2]
[394871004,1764045044252,-166.66,0.00015861,2]
[394871005,1764045044262,-3507.71052,0.0001587,2]
[394871006,1764045044272,-500.0,0.00015888,2]
[394871007,1764045044281,-500.0,0.00015888,2]
[394871008,1764045044291,-167.64300838,0.000159,2]
[394871009,1764045044302,-1042.57,0.00015964,2]
[394871010,1764045044311,-150.0,0.00015965,2]
[394871011,1764045044321,-150.0,0.00015965,2]
[394871012,1764045044331,-500.0,0.00015965,2]
[394871013,1764045044341,-211.29,0.00015988,2]
[394871014,1764045044350,-151.0,0.00015999,2]
[394871015,1764045044360,-151.0,0.00015999,2]
[394871016,1764045044370,-29460.6497452,0.00016,2]
[394871017,1764045044379,-11465.432049,0.00016,2]
[394871018,1764045044389,-200.0,0.00016,2]
[394871019,1764045044399,-3507.71051,0.00016,2]
[394871020,1764045044409,-50411.22157956,0.00016,4]
[394871021,1764045044418,-500.0,0.00016025,2]
[394871022,1764045044428,-500.0,0.00016025,2]
[394871023,1764045044437,-528.6,0.00016038,2]
[394871024,1764045044447,-325.79,0.00016085,2]
[394871025,1764045044456,-166.66,0.00016095,2]
[394871026,1764045044465,-250.0,0.00016102,2]
[394871027,1764045044474,-250.0,0.00016102,2]
[394871028,1764045044484,-500.0,0.00016102,2]
[394871029,1764045044493,-200.0,0.0001616,2]
[394871030,1764045044503,-500.0,0.00016162,2]
[394871031,1764045044512,-500.0,0.00016162,2]
[394871032,1764045044522,-1592.0,0.00016163,2]
[394871033,1764045044531,-166.66,0.00016175,2]
[394871034,1764045044541,-23241.61268049,0.0001618,2]
[394871035,1764045044551,-300.47,0.00016198,2]
[394871036,1764045044560,-450.0,0.00016199,2]
[394871037,1764045044569,-5000.00383419,0.000162,5]
[394871038,1764045044579,-1042.57,0.00016238,2]
[394871039,1764045044588,-500.0,0.00016239,2]
[394871040,1764045044598,-300.0,0.0001629,2]
[394871041,1764045044608,-575.0,0.00016294,2]
[394871042,1764045044618,-500.0,0.00016299,2]
[394871043,1764045044628,-500.0,0.00016299,2]
[394871044,1764045044637,-578.20924308,0.00016307,2]
[394871046,1764045044647,-225.05301513,0.00016307,2]
[394871048,1764045044656,-1000.0,0.00016307,2]
[394871050,1764045044666,-541.56572838,0.00016307,2]
[394871052,1764045044675,-500.0,0.00016307,2]
[394871054,1764045044684,-500.0,0.00016307,2]
[394871056,1764045044694,-500.0,0.00016307,2]
[394871059,1764045044704,-500.0,0.00016307,2]
[394871061,1764045044714,-500.0,0.00016307,2]
[394871063,1764045044723,-500.0,0.00016307,2]
[394871064,1764045044733,-500.0,0.00016307,2]
[394871065,1764045044743,-500.0,0.00016307,2]
[394871066,1764045044752,-485.69984108,0.00016307,2]
[394871067,1764045044762,-200.0,0.00016322,2]
[394871068,1764045044771,-300.47,0.00016335,2]
[394871069,1764045044780,-16386.82254855,0.00016367,2]
[394871070,1764045044790,-500.0,0.00016376,2]
[394871071,1764045044800,-1592.0,0.0001638,2]
[394871072,1764045044810,-500.0,0.00016393,2]
[394871073,1764045044819,-500.0,0.00016393,2]
[394871074,1764045044828,-500.0,0.00016393,2]
[394871076,1764045044837,-500.0,0.00016393,2]
[394871077,1764045044846,-444.39296676,0.00016436,2]
[394871078,1764045044856,-500.0,0.00016436,2]
[394871079,1764045044866,-150.0,0.00016438,2]
[394871080,1764045044875,-4448.47,0.00016438,2]
[394871081,1764045044885,-338.57656952,0.00016438,2]
[394871082,1764045044895,-1592.0,0.00016442,2]
[394871083,1764045044904,-1592.0,0.00016446,2]
[394871084,1764045044913,-168.0,0.00016447,2]
[394871085,1764045044923,-300.47,0.00016472,2]
[394871086,1764045044932,-168.0,0.00016484,2]
[394871087,1764045044942,-166.66,0.00016489,2]
[394871088,1764045044952,-1042.57,0.00016512,2]
[394871089,1764045044962,-500.0,0.00016513,2]
[394871090,1764045044971,-510.0,0.0001654,2]
[394871091,1764045044980,-500.0,0.00016573,2]
[394871092,1764045044990,-150.0,0.00016575,2]
[394871093,1764045044999,-300.47,0.00016609,2]
[394871094,1764045045009,-500.0,0.0001665,2]
[394871095,1764045045019,-1000.0,0.00016699,2]
[394871096,1764045045029,-500.0,0.0001671,2]
[394871097,1764045045039,-200.0,0.00016712,2]
[394871098,1764045045048,-166.66,0.00016733,2]
[394871099,1764045045058,-300.47,0.00016746,2]
[394871100,1764045045068,-250.0,0.00016755,2]
[394871101,1764045045078,-285.62093401,0.00016784,3]
[394871102,1764045045087,-300.0,0.00016784,2]
[394871103,1764045045097,-300.0,0.00016784,2]
[394871104,1764045045109,-250.0,0.00016784,2]
[394871105,1764045045119,-319.83873296,0.00016784,2]
[394871106,1764045045129,-195.0,0.00016784,2]
[394871107,1764045045138,-300.0,0.00016784,2]
[394871108,1764045045148,-300.0,0.00016784,2]
[394871109,1764045045158,-300.0,0.00016784,2]
[394871110,1764045045168,-300.0,0.00016784,2]
[394871111,1764045045178,-193.0,0.00016784,2]
[394871112,1764045045188,-250.0,0.00016784,2]
[394871113,1764045045197,-1042.57,0.00016786,2]
[394871114,1764045045207,-500.0,0.00016787,2]
[394871115,1764045045216,-420.0,0.00016816,2]
[394871116,1764045045226,-211.29,0.0001683,2]
[394871117,1764045045236,-500.0,0.00016847,2]
[394871118,1764045045245,-1000.0,0.00016855,2]
[394871119,1764045045255,-1600.0,0.00016858,2]
[394871120,1764045045264,-1616.032888,0.00016869,2]
[394871121,1764045045274,-1616.032888,0.00016869,2]
[394871122,1764045045283,-1616.032888,0.00016869,2]
[394871123,1764045045293,-1616.032888,0.00016869,2]
[394871124,1764045045303,-151.0,0.00016875,2]
[394871125,1764045045312,-151.0,0.00016875,2]
[394871126,1764045045322,-903.0,0.00016888,2]
[394871127,1764045045335,-1211.9029359,0.000169,2]
[394871129,1764045045345,-5609.0,0.00016918,2]
[394871131,1764045045354,-500.0,0.00016924,2]
[394871133,1764045045363,-770.41955583,0.00016941,2]
[394871135,1764045045373,-887.29822992,0.00016941,2]
[394871137,1764045045383,-1000.0,0.00016941,2]
[394871139,1764045045392,-500.0,0.00016973,2]
[394871141,1764045045403,-333.55121906,0.00016973,2]
[394871143,1764045045412,-500.0,0.00016973,2]
[394871145,1764045045422,-500.0,0.00016973,2]
[394871146,1764045045431,-501.64846154,0.00016973,2]
[394871147,1764045045441,-502.76342375,0.00016973,2]
[394871148,1764045045451,-500.0,0.00016984,2]
[394871149,1764045045461,-611.08,0.00016986,2]
[394871150,1764045045470,-19746.89475104,0.00017,2]
[394871151,1764045045484,-8086.00539127,0.00017,2]
[394871155,1764045045566,-500.0,0.00016179,2]
[394871156,1764045045576,-381.66775731,0.00016179,2]
[394871157,1764045045585,-216.03159865,0.00016179,2]
[394871158,1764045045595,-11601.74317915,0.00017,2]
[394871159,1764045045608,-271480.47847138,0.00017,2]
[394871160,1764045045617,-2000.0,0.00017,2]
[394871161,1764045045627,-1616.032888,0.00017,2]
[394871162,1764045045636,-1616.032888,0.00017,2]
[394871163,1764045045646,-1616.032888,0.00017,2]
[394871164,1764045045655,-1616.032888,0.00017,2]
[394871165,1764045045664,-250.0,0.00017,2]
[394871166,1764045045673,-151.0,0.00017,2]
[394871167,1764045045683,-151.0,0.00017,2]
[394871168,1764045045692,-151.0,0.00017,2]
[394871169,1764045045701,-2000.0,0.00017,2]
[394871170,1764045045711,-262.345366,0.00017,2]
[394871171,1764045045720,-262.345366,0.00017,2]
[394871172,1764045045730,-262.345366,0.00017,2]
[394871173,1764045045739,-262.345366,0.00017,2]
[394871174,1764045045748,-1042.57,0.0001706,2]
[394871175,1764045045758,-500.0,0.00017061,2]
[394871176,1764045045768,-2992.0,0.00017081,2]
[394871177,1764045045777,-263.20719654,0.00017121,2]
[394871178,1764045045787,-500.0,0.00017198,2]
[394871179,1764045045796,-1042.57,0.00017334,2]
[394871180,1764045045806,-500.0,0.00017335,2]
[394871181,1764045045815,-166.66,0.00017371,2]
[394871182,1764045045824,-1000.0,0.00017403,2]
[394871183,1764045045834,-500.0,0.00017472,2]
[394871184,1764045045844,-1500.0,0.00017489,2]
[394871185,1764045045853,-728.5730572,0.00017518,2]
[394871186,1764045045862,-1018.21536391,0.00017521,2]
[394871188,1764045045872,-1000.0,0.00017521,2]
[394871189,1764045045881,-1000.0,0.00017521,2]
[394871190,1764045045890,-2168.7662546,0.00017544,2]
[394871191,1764045045899,-692.3193967,0.00017544,2]
[394871192,1764045045908,-1042.57,0.00017608,2]
[394871193,1764045045918,-364.99346291,0.00017609,2]
[394871194,1764045045927,-300.0,0.00017659,2]
[394871195,1764045045937,-211.29,0.00017671,2]
[394871196,1764045045946,-866.0,0.00017743,2]
[394871197,1764045045955,-2992.0,0.00017795,2]
[394871198,1764045045965,-500.0,0.00017808,2]
[394871199,1764045045974,-200.0,0.00017855,2]
[394871200,1764045045984,-200.0,0.00017856,2]
[394871201,1764045045993,-200.0,0.00017856,2]
[394871202,1764045046002,-1042.57,0.00017882,2]
[394871203,1764045046012,-312.3079333,0.000179,2]
[394871204,1764045046021,-500.0,0.00017945,2]
[394871205,1764045046031,-1000.0,0.00017951,2]
[394871206,1764045046041,-162.5666229,0.00017959,2]
[394871207,1764045046050,-8404.48161294,0.00017965,2]
[394871208,1764045046059,-150.54892794,0.00017973,2]
[394871209,1764045046068,-500.0,0.00017973,2]
[394871210,1764045046078,-426.78630522,0.00017973,2]
[394871211,1764045046087,-500.0,0.00017973,2]
[394871212,1764045046096,-568.31819586,0.00017973,2]
[394871213,1764045046112,-500.0,0.00017973,2]
[394871214,1764045046121,-500.0,0.00017973,2]
[394871215,1764045046131,-503.75344856,0.00017973,2]
[394871216,1764045046140,-500.0,0.00017973,2]
[394871217,1764045046151,-500.0,0.00017973,2]
[394871218,1764045046162,-483.9171617,0.00017986,2]
[394871219,1764045046171,-154.4773378,0.00017986,2]
[394871220,1764045046181,-161.95838318,0.0001799,2]
[394871221,1764045046191,-10152.15186796,0.00017991,2]
[394871222,1764045046200,-304969.17526168,0.00018,2]
[394871223,1764045046209,-115829.78854592,0.00018,2]
[394871224,1764045046219,-660065.25476792,0.00018,2]
[394871225,1764045046228,-886.1554495,0.00018,2]
[394871226,1764045046237,-313.86,0.00018,2]
[394871227,1764045046247,-150.0,0.00018,2]
[394871228,1764045046256,-596.79584759,0.00018,2]
[394871229,1764045046266,-1616.032888,0.00018,2]
[394871230,1764045046276,-1616.032888,0.00018,2]
[394871231,1764045046286,-1616.032888,0.00018,2]
[394871232,1764045046295,-1616.032888,0.00018,2]
[394871233,1764045046304,-1616.032888,0.00018,2]
[394871234,1764045046315,-1616.032888,0.00018,2]
[394871235,1764045046325,-1616.032888,0.00018,2]
[394871236,1764045046335,-1616.032888,0.00018,2]
[394871237,1764045046344,-151.0,0.00018,2]
[394871238,1764045046353,-151.0,0.00018,2]
[394871239,1764045046363,-151.0,0.00018,2]
[394871240,1764045046372,-151.0,0.00018,2]
[394871241,1764045046381,-432823.67215082,0.00018,2]
[394871242,1764045046390,-151.0,0.00018,2]
[394871243,1764045046400,-151.0,0.00018,2]
[394871244,1764045046409,-151.0,0.00018,2]
[394871245,1764045046418,-262.345366,0.00018,2]
[394871246,1764045046428,-262.345366,0.00018,2]
[394871247,1764045046437,-262.345366,0.00018,2]
[394871248,1764045046446,-262.345366,0.00018,2]
[394871249,1764045046456,-262.345366,0.00018,2]
[394871250,1764045046465,-262.345366,0.00018,2]
[394871251,1764045046474,-262.345366,0.00018,2]
[394871252,1764045046484,-262.345366,0.00018,2]
[394871253,1764045046493,-262.345366,0.00018,2]
[394871254,1764045046502,-262.345366,0.00018,2]
[394871255,1764045046512,-262.345366,0.00018,2]
[394871256,1764045046521,-262.345366,0.00018,2]
[394871257,1764045046531,-9506.90192051,0.00018007,2]
[394871258,1764045046541,-166.66,0.00018009,2]
[394871259,1764045046551,-6573.5594957,0.00018032,2]
[394871260,1764045046561,-2558.2836892,0.00018032,2]
[394871261,1764045046571,-2000.0,0.00018037,2]
[394871262,1764045046580,-219.70056782,0.00018048,2]